Workbook

Sheet Лист 1
A2: Школа | E2: Отд./корп. | I2: День | J2: 2022-06-24
A4: Прием пищи | B4: Раздел | C4: № рец. | D4: Блюдо | E4: Выход, г | F4: Цена | G4: Калорийность | H4: Белки | I4: Жиры | J4: Углеводы
A5: Завтрак | B5: Гарнир | C5: №510 | D5: Каша пшеничная вязкая молочная с маслом сливочным | E5: 150.00 | G5: 216.00 | H5: 6.30 | I5: 7.01 | J5: 32.84
B6: гор.напиток | C6: ТТК | D6: Кофейный напиток с печеньем | E6: 200.00 | G6: 148.00 | H6: 1.48 | I6: 3.48 | J6: 28.77
B7: хлеб | C7: ТТК | D7: хлеб белый | E7: 30.00 | G7: 73.00 | H7: 2.37 | I7: 0.24 | J7: 15.24
D8: ИТОГО | E8: =SUM(E5:E7) -> 380.00 | F8: 22.95 | G8: =SUM(G5:G7) -> 437 | H8: =SUM(H5:H7) -> 10 | I8: =SUM(I5:I7) -> 11 | J8: =SUM(J5:J7) -> 77
A11: Прием пищи | B11: Раздел | C11: № рец. | D11: Блюдо | E11: Выход, г | F11: Цена | G11: Калорийность | H11: Белки | I11: Жиры | J11: Углеводы
B12: первое блюдо | C12: №140 | D12: Суп картофельный с лапшой по домашнему | E12: 250.00 | G12: 128.00 | H12: 2.52 | I12: 3.56 | J12: 16.97
B13: второе блюдо | C13: ТТК | D13: Биточки "Дружба" | E13: 80.00 | G13: 216.00 | H13: 12.00 | I13: 13.15 | J13: 11.45
B14: гарнир | C14: ТТК | D14: Пюре картофельное с маслом сливочным | E14: 160.00 | G14: 211.20 | H14: 4.19 | I14: 8.58 | J14: 25.66
B15: гор напиток | C15: ТТК | D15: Компот из сухофруктов(изюм) | E15: 200.00 | G15: 119.00 | H15: 0.45 | I15: 0.00 | J15: 30.09
B16: хлеб | C16: ТТК | D16: хлеб белый | E16: 44.00 | G16: 106.48 | H16: 3.48 | I16: 0.35 | J16: 22.35
B17: Десерт | C17: ТТК | D17: Десерт фруктовый (мандарины) | E17: 85.00 | G17: 32.30 | H17: 0.68 | I17: 0.17 | J17: 6.37
D18: ИТОГО | E18: =SUM(E12:E17) -> 819.00 | F18: 104.89 | G18: =SUM(G12:G17) -> 813 | H18: =SUM(H12:H17) -> 23 | I18: =SUM(I12:I17) -> 26 | J18: =SUM(J12:J17:J17) -> 113
A21: Прием пищи | B21: Раздел | C21: № рец. | D21: Блюдо | E21: Выход, г | F21: Цена | G21: Калорийность | H21: Белки | I21: Жиры | J21: Углеводы
B22: гор. Напиток | C22: ТТК | D22: Напиток сокосодержащий в промышленной упаковке | E22: 200.00 | G22: 132.00 | H22: 0.60 | I22: 0.00 | J22: 34.00
B23: мучное | C23: ТТК | D23: Пирожки печеные с повидлом | E23: 75.00 | G23: 204.00 | H23: 4.20 | I23: 1.69 | J23: 42.79
D24: ИТОГО | E24: =SUM(E22:E22) -> 200.00 | F24: 25.75 | G24: =SUM(G22:G23) -> 336 | H24: =SUM(H22:H23) -> 5 | I24: =SUM(I22:I23) -> 2 | J24: =SUM(J22:J23) -> 77
E25: Всего по меню: | F25: =F24+F18+F8 -> 153.59 | G25: =G24+G18+G8 -> 1586 | H25: =H24+H18+H8 -> 38 | I25: =I24+I18+I8 -> 38 | J25: =J24+J18+J8 -> 267
